[Event "*** Titled Tuesday Blitz"]
[Site "Chess.com"]
[Date "2019.06.04"]
[Round "4"]
[White "VeraNebolsina"]
[Black "WPWPWP-2015"]
[Result "1/2-1/2"]
[WhiteElo "2364"]
[BlackElo "2444"]
[TimeControl "180+2"]
[EndTime "13:53:37 PDT"]
[Termination "Game drawn by repetition"]

1. e4 {[%clk 0:03:01.9]} 1... e5 {[%clk 0:02:59.1]} 2. Nf3 {[%clk 0:03:01.6]}
2... Nc6 {[%clk 0:03:00]} 3. Bb5 {[%clk 0:03:02]} 3... Nf6 {[%clk 0:03:00.8]} 4.
O-O {[%clk 0:02:58.5]} 4... Nxe4 {[%clk 0:03:01.4]} 5. Re1 {[%clk 0:02:57.1]}
5... Nd6 {[%clk 0:03:02.3]} 6. Nxe5 {[%clk 0:02:57.4]} 6... Be7 {[%clk
0:03:01.5]} 7. Bf1 {[%clk 0:02:53.2]} 7... Nf5 {[%clk 0:02:59.2]} 8. c3 {[%clk
0:02:51.5]} 8... O-O {[%clk 0:02:59.5]} 9. d4 {[%clk 0:02:50.3]} 9... Nxe5
{[%clk 0:02:59.3]} 10. Rxe5 {[%clk 0:02:43.5]} 10... d6 {[%clk 0:02:56.5]} 11.
Re1 {[%clk 0:02:42.6]} 11... d5 {[%clk 0:02:57.4]} 12. Nd2 {[%clk 0:02:38]}
12... Nh4 {[%clk 0:02:48.1]} 13. g3 {[%clk 0:02:28.2]} 13... Ng6 {[%clk
0:02:46.9]} 14. Nf3 {[%clk 0:02:17.6]} 14... Re8 {[%clk 0:02:44.8]} 15. Qb3
{[%clk 0:01:45.3]} 15... c6 {[%clk 0:02:40.4]} 16. h4 {[%clk 0:01:32.7]} 16...
h6 {[%clk 0:02:38.5]} 17. Bd2 {[%clk 0:01:30.9]} 17... Bg4 {[%clk 0:02:23.9]}
18. Ne5 {[%clk 0:01:29.6]} 18... Nxe5 {[%clk 0:02:23.8]} 19. dxe5 {[%clk
0:01:29.5]} 19... b5 {[%clk 0:02:20.7]} 20. a4 {[%clk 0:01:27]} 20... a6 {[%clk
0:02:21.3]} 21. Be3 {[%clk 0:01:24.8]} 21... Qd7 {[%clk 0:02:19.3]} 22. Qc2
{[%clk 0:01:16.5]} 22... Bf5 {[%clk 0:02:08.4]} 23. Bd3 {[%clk 0:01:16.4]} 23...
Bxd3 {[%clk 0:02:08.5]} 24. Qxd3 {[%clk 0:01:17]} 24... Qg4 {[%clk 0:02:06.8]}
25. Qd4 {[%clk 0:01:02.5]} 25... Qf3 {[%clk 0:02:04.2]} 26. Qf4 {[%clk
0:00:58.6]} 26... Qh5 {[%clk 0:01:41.9]} 27. b4 {[%clk 0:00:52.6]} 27... Bf8
{[%clk 0:01:38.8]} 28. Bd4 {[%clk 0:00:52.6]} 28... Qg6 {[%clk 0:01:34.1]} 29.
Qf3 {[%clk 0:00:49.3]} 29... h5 {[%clk 0:01:29.7]} 30. Re2 {[%clk 0:00:49.4]}
30... Qe6 {[%clk 0:01:24.3]} 31. Rea2 {[%clk 0:00:48.3]} 31... Rad8 {[%clk
0:01:20.5]} 32. Qxh5 {[%clk 0:00:46.7]} 32... g6 {[%clk 0:01:15.1]} 33. Qf3
{[%clk 0:00:46.2]} 33... Bg7 {[%clk 0:01:15.7]} 34. axb5 {[%clk 0:00:45.8]}
34... axb5 {[%clk 0:01:16]} 35. Ra7 {[%clk 0:00:46.7]} 35... Rd7 {[%clk
0:01:15.4]} 36. R1a6 {[%clk 0:00:44.4]} 36... Rxa7 {[%clk 0:00:40]} 37. Rxa7
{[%clk 0:00:45.1]} 37... Re7 {[%clk 0:00:41.4]} 38. Ra8+ {[%clk 0:00:40.8]}
38... Re8 {[%clk 0:00:42.5]} 39. Ra7 {[%clk 0:00:41.7]} 39... Re7 {[%clk
0:00:43.4]} 40. Ra6 {[%clk 0:00:42.8]} 40... Qc8 {[%clk 0:00:38]} 41. Ra7 {[%clk
0:00:33.2]} 41... Rxa7 {[%clk 0:00:38]} 42. Bxa7 {[%clk 0:00:34.1]} 42... Bxe5
{[%clk 0:00:39]} 43. Bd4 {[%clk 0:00:35.1]} 43... Qe6 {[%clk 0:00:24.2]} 44. Qe3
{[%clk 0:00:34.2]} 44... Bxd4 {[%clk 0:00:17.7]} 45. cxd4 {[%clk 0:00:32]} 45...
Qd6 {[%clk 0:00:14.6]} 46. Qe8+ {[%clk 0:00:28.2]} 46... Kg7 {[%clk 0:00:13.9]}
47. Qe5+ {[%clk 0:00:24.7]} 47... Qxe5 {[%clk 0:00:12.8]} 48. dxe5 {[%clk
0:00:25.9]} 48... Kf8 {[%clk 0:00:08.9]} 49. Kf1 {[%clk 0:00:26.6]} 49... Ke7
{[%clk 0:00:10]} 50. Ke2 {[%clk 0:00:27.5]} 50... Ke6 {[%clk 0:00:11.3]} 51. f4
{[%clk 0:00:28.4]} 51... Kf5 {[%clk 0:00:10.8]} 52. Kf3 {[%clk 0:00:29.1]} 52...
Ke6 {[%clk 0:00:05.5]} 53. g4 {[%clk 0:00:28.9]} 53... f6 {[%clk 0:00:03.9]} 54.
exf6 {[%clk 0:00:18.9]} 54... Kxf6 {[%clk 0:00:04.8]} 55. Ke3 {[%clk 0:00:19.5]}
55... Ke6 {[%clk 0:00:05.5]} 56. Kd4 {[%clk 0:00:20.5]} 56... Kf6 {[%clk
0:00:06.6]} 57. Kc5 {[%clk 0:00:19.7]} 57... Ke6 {[%clk 0:00:07.4]} 58. Kd4
{[%clk 0:00:21]} 58... Kf7 {[%clk 0:00:08.1]} 59. Kc5 {[%clk 0:00:21.6]} 59...
Kf6 {[%clk 0:00:08.7]} 60. Kd4 {[%clk 0:00:22.2]} 60... Ke6 {[%clk 0:00:09.9]}
61. Kc5 {[%clk 0:00:22.9]} 61... Ke7 {[%clk 0:00:06.6]} 62. Kd4 {[%clk
0:00:23.8]} 62... Kf6 {[%clk 0:00:06.7]} 63. Kc5 {[%clk 0:00:24.8]} 63... Ke6
{[%clk 0:00:07.7]} 64. Kd4 {[%clk 0:00:26]} 1/2-1/2

[Event "*** Titled Tuesday Blitz"]
[Site "Chess.com"]
[Date "2019.06.04"]
[Round "4"]
[White "Zq1"]
[Black "Koksal06"]
[Result "1-0"]
[WhiteElo "2511"]
[BlackElo "2472"]
[TimeControl "180+2"]
[EndTime "13:53:41 PDT"]
[Termination "Zq1 won by resignation"]

1. d4 {[%clk 0:03:00.1]} 1... d5 {[%clk 0:02:59.4]} 2. c4 {[%clk 0:03:01.1]}
2... c6 {[%clk 0:03:00.2]} 3. cxd5 {[%clk 0:03:02.2]} 3... cxd5 {[%clk
0:03:00.8]} 4. Bg5 {[%clk 0:03:03.8]} 4... Nc6 {[%clk 0:03:01.9]} 5. Nc3 {[%clk
0:03:04.2]} 5... h6 {[%clk 0:03:01.8]} 6. Bh4 {[%clk 0:03:04.4]} 6... g5 {[%clk
0:02:53.7]} 7. Bg3 {[%clk 0:03:04.8]} 7... Bg7 {[%clk 0:02:55.5]} 8. e3 {[%clk
0:03:05.5]} 8... e6 {[%clk 0:02:53.4]} 9. Bd3 {[%clk 0:03:01.4]} 9... Nge7
{[%clk 0:02:54.5]} 10. Nge2 {[%clk 0:02:53.6]} 10... Bd7 {[%clk 0:02:54.9]} 11.
h4 {[%clk 0:02:53.7]} 11... Qb6 {[%clk 0:02:53.2]} 12. a3 {[%clk 0:02:48.2]}
12... Na5 {[%clk 0:02:47.4]} 13. b4 {[%clk 0:02:40.5]} 13... Nc4 {[%clk
0:02:48.3]} 14. Na4 {[%clk 0:02:34.7]} 14... Qc6 {[%clk 0:02:39.7]} 15. Nc5
{[%clk 0:02:27.3]} 15... b6 {[%clk 0:02:27.6]} 16. Nxd7 {[%clk 0:02:10.3]} 16...
Qxd7 {[%clk 0:02:28.8]} 17. hxg5 {[%clk 0:01:58.5]} 17... hxg5 {[%clk
0:02:12.3]} 18. Rxh8+ {[%clk 0:01:58]} 18... Bxh8 {[%clk 0:02:14.2]} 19. Bxc4
{[%clk 0:01:55.6]} 19... dxc4 {[%clk 0:02:13.8]} 20. Nc3 {[%clk 0:01:54.3]}
20... Nd5 {[%clk 0:02:11.5]} 21. Qh5 {[%clk 0:01:41.7]} 21... Bf6 {[%clk
0:01:19.8]} 22. Ne4 {[%clk 0:01:35.3]} 22... O-O-O {[%clk 0:01:15.3]} 23. Nxf6
{[%clk 0:01:32.3]} 23... Nxf6 {[%clk 0:01:16]} 24. Qxg5 {[%clk 0:01:30.6]} 24...
Ne4 {[%clk 0:01:17.4]} 25. Qe5 {[%clk 0:01:25.7]} 25... Nxg3 {[%clk 0:01:17.4]}
26. Qxg3 {[%clk 0:01:26.3]} 26... Qa4 {[%clk 0:01:17.8]} 27. Qf3 {[%clk
0:01:23.7]} 27... Rd7 {[%clk 0:01:14.9]} 28. Qd1 {[%clk 0:01:22]} 28... Qc6
{[%clk 0:01:14.7]} 29. Qf3 {[%clk 0:01:17.2]} 29... Qa4 {[%clk 0:01:13.4]} 30.
Rc1 {[%clk 0:01:05.4]} 30... Rc7 {[%clk 0:01:11.1]} 31. Rc3 {[%clk 0:01:05.4]}
31... Kb8 {[%clk 0:01:02.8]} 32. Qd1 {[%clk 0:00:59.6]} 32... Qc6 {[%clk
0:01:03.9]} 33. f3 {[%clk 0:00:59.7]} 33... b5 {[%clk 0:01:03.1]} 34. Kf2 {[%clk
0:00:55.4]} 34... Qd5 {[%clk 0:01:04.2]} 35. Qh1 {[%clk 0:00:50.8]} 35... Kb7
{[%clk 0:01:02.6]} 36. Qh2 {[%clk 0:00:48.4]} 36... Re7 {[%clk 0:01:00.2]} 37.
Qf4 {[%clk 0:00:46.6]} 37... e5 {[%clk 0:00:57.4]} 38. Qf6 {[%clk 0:00:37.1]}
38... Re8 {[%clk 0:00:54.7]} 39. Rc2 {[%clk 0:00:33.5]} 39... exd4 {[%clk
0:00:53.8]} 40. Qxd4 {[%clk 0:00:33.5]} 40... Qxd4 {[%clk 0:00:55]} 41. exd4
{[%clk 0:00:34.6]} 41... Kc6 {[%clk 0:00:56.8]} 42. Re2 {[%clk 0:00:32.8]} 42...
Rc8 {[%clk 0:00:57.8]} 43. Re5 {[%clk 0:00:33.1]} 43... Kb6 {[%clk 0:00:49.6]}
44. Rc5 {[%clk 0:00:33.8]} 44... Re8 {[%clk 0:00:50.9]} 45. g4 {[%clk
0:00:31.9]} 45... a5 {[%clk 0:00:52.2]} 46. g5 {[%clk 0:00:31.9]} 46... axb4
{[%clk 0:00:53.4]} 47. axb4 {[%clk 0:00:32.5]} 47... Rd8 {[%clk 0:00:52]} 48.
Ke3 {[%clk 0:00:31.6]} 48... Re8+ {[%clk 0:00:53.3]} 49. Kd2 {[%clk 0:00:32.6]}
49... Rd8 {[%clk 0:00:52.4]} 50. Kc3 {[%clk 0:00:33.2]} 50... Re8 {[%clk
0:00:53.1]} 51. Rf5 {[%clk 0:00:34.1]} 51... Re3+ {[%clk 0:00:52.9]} 52. Kc2
{[%clk 0:00:34.6]} 52... Re2+ {[%clk 0:00:40.4]} 53. Kd1 {[%clk 0:00:35.4]}
53... Rg2 {[%clk 0:00:31.8]} 54. Rf6+ {[%clk 0:00:35.7]} 54... Kc7 {[%clk
0:00:32.2]} 55. Rxf7+ {[%clk 0:00:36.6]} 55... Kd6 {[%clk 0:00:34.1]} 56. Rf6+
{[%clk 0:00:36.1]} 56... Kd5 {[%clk 0:00:35.4]} 57. Rf5+ {[%clk 0:00:22.4]}
57... Kxd4 {[%clk 0:00:36.3]} 58. Rxb5 {[%clk 0:00:22.9]} 58... Ke3 {[%clk
0:00:36.7]} 59. Re5+ {[%clk 0:00:21.4]} 59... Kd3 {[%clk 0:00:37.8]} 60. Rd5+
{[%clk 0:00:22]} 60... Ke3 {[%clk 0:00:39.3]} 61. b5 {[%clk 0:00:22]} 61... Kxf3
{[%clk 0:00:35.2]} 62. b6 {[%clk 0:00:23]} 62... Rb2 {[%clk 0:00:36.1]} 63. Rd6
{[%clk 0:00:23.8]} 63... c3 {[%clk 0:00:13]} 64. g6 {[%clk 0:00:23.7]} 64... Ke3
{[%clk 0:00:12.6]} 65. g7 {[%clk 0:00:23.8]} 65... Rg2 {[%clk 0:00:11.7]} 66. b7
{[%clk 0:00:24.6]} 1-0

[Event "*** Titled Tuesday Blitz"]
[Site "Chess.com"]
[Date "2019.06.04"]
[Round "4"]
[White "Polish_fighter3000"]
[Black "Michael_Scofield01"]
[Result "1-0"]
[WhiteElo "3007"]
[BlackElo "2733"]
[TimeControl "180+2"]
[EndTime "13:53:42 PDT"]
[Termination "Polish_fighter3000 won by resignation"]

1. e4 {[%clk 0:03:01.9]} 1... e5 {[%clk 0:02:59.9]} 2. Nf3 {[%clk 0:03:02.7]}
2... Nc6 {[%clk 0:03:00.6]} 3. Bc4 {[%clk 0:03:03.4]} 3... Bc5 {[%clk
0:03:00.5]} 4. c3 {[%clk 0:03:03.7]} 4... Nf6 {[%clk 0:03:00.7]} 5. d3 {[%clk
0:03:05.1]} 5... d6 {[%clk 0:03:01.2]} 6. O-O {[%clk 0:03:03.1]} 6... O-O {[%clk
0:03:01.1]} 7. Bg5 {[%clk 0:03:03.8]} 7... h6 {[%clk 0:02:57.7]} 8. Bh4 {[%clk
0:03:05.3]} 8... Bb6 {[%clk 0:02:55]} 9. Nbd2 {[%clk 0:03:02.6]} 9... Ne7 {[%clk
0:02:50.1]} 10. Bxf6 {[%clk 0:02:57.5]} 10... gxf6 {[%clk 0:02:50.8]} 11. Nh4
{[%clk 0:02:56.3]} 11... Kg7 {[%clk 0:02:04.3]} 12. Qh5 {[%clk 0:02:54.7]} 12...
Ng6 {[%clk 0:01:39.5]} 13. Nf5+ {[%clk 0:02:53.8]} 13... Bxf5 {[%clk 0:01:36.8]}
14. exf5 {[%clk 0:02:55.7]} 14... Ne7 {[%clk 0:01:25.5]} 15. d4 {[%clk
0:02:55.5]} 15... d5 {[%clk 0:01:13.3]} 16. Bd3 {[%clk 0:02:27.7]} 16... e4
{[%clk 0:01:11.7]} 17. Be2 {[%clk 0:02:26.7]} 17... Qd7 {[%clk 0:01:10]} 18. Bg4
{[%clk 0:02:27]} 18... c6 {[%clk 0:01:03.2]} 19. Rae1 {[%clk 0:02:27.6]} 19...
Rae8 {[%clk 0:00:57.7]} 20. f3 {[%clk 0:02:20.9]} 20... exf3 {[%clk 0:00:48.3]}
21. Nxf3 {[%clk 0:02:22.8]} 21... Ng8 {[%clk 0:00:46.7]} 22. Rd1 {[%clk
0:02:15.4]} 22... Re4 {[%clk 0:00:37]} 23. Kh1 {[%clk 0:02:14.5]} 23... Bc7
{[%clk 0:00:36.7]} 24. Nd2 {[%clk 0:02:10.2]} 24... Re3 {[%clk 0:00:33.9]} 25.
Bf3 {[%clk 0:01:56]} 25... Ne7 {[%clk 0:00:25.4]} 26. Qg4+ {[%clk 0:01:48.3]}
26... Kh8 {[%clk 0:00:24.3]} 27. Qh4 {[%clk 0:01:48.7]} 27... Kg7 {[%clk
0:00:24.3]} 28. Bh5 {[%clk 0:01:46.8]} 28... Qd6 {[%clk 0:00:19.6]} 29. c4
{[%clk 0:01:41.8]} 29... b6 {[%clk 0:00:18.5]} 30. cxd5 {[%clk 0:01:39.1]} 30...
cxd5 {[%clk 0:00:19.3]} 31. Nb3 {[%clk 0:01:28.1]} 31... Bb8 {[%clk 0:00:20]}
32. Nc1 {[%clk 0:01:16.8]} 32... Re4 {[%clk 0:00:20.9]} 33. Qh3 {[%clk 0:01:18]}
33... Nc6 {[%clk 0:00:21.3]} 34. Rd3 {[%clk 0:01:04.8]} 34... Nxd4 {[%clk
0:00:19.6]} 35. Rg3+ {[%clk 0:01:05.5]} 35... Kh7 {[%clk 0:00:20.6]} 36. Nb3
{[%clk 0:00:57.9]} 36... Nxb3 {[%clk 0:00:20.8]} 37. axb3 {[%clk 0:00:54.1]}
37... Rg8 {[%clk 0:00:21.3]} 38. Rd3 {[%clk 0:00:44.2]} 38... d4 {[%clk
0:00:19.2]} 39. Bxf7 {[%clk 0:00:43.9]} 39... Rg5 {[%clk 0:00:19.5]} 40. Bg6+
{[%clk 0:00:42.9]} 40... Kg7 {[%clk 0:00:20]} 41. g3 {[%clk 0:00:43.8]} 41...
Re3 {[%clk 0:00:17.4]} 42. Rd2 {[%clk 0:00:37.2]} 42... Rexg3 {[%clk 0:00:06]}
43. hxg3 {[%clk 0:00:35.6]} 43... Rxg3 {[%clk 0:00:07.9]} 44. Qh2 {[%clk
0:00:24.7]} 44... Qd5+ {[%clk 0:00:08.6]} 45. Rg2 {[%clk 0:00:26.2]} 45... Rg4
{[%clk 0:00:06.2]} 46. Qh3 {[%clk 0:00:14.3]} 46... Rg3 {[%clk 0:00:07.1]} 47.
Bh5 {[%clk 0:00:14.4]} 47... Kh8 {[%clk 0:00:05.1]} 48. Qh2 {[%clk 0:00:13.9]}
48... Kh7 {[%clk 0:00:02.5]} 49. Rg1 {[%clk 0:00:07.2]} 49... Rg5 {[%clk
0:00:02.9]} 50. Qh3 {[%clk 0:00:06]} 50... Rg3 {[%clk 0:00:03.8]} 51. Qh4 {[%clk
0:00:04.9]} 51... Rg5 {[%clk 0:00:04.9]} 52. Bg6+ {[%clk 0:00:05.8]} 52... Kg7
{[%clk 0:00:06.2]} 53. Qe1 {[%clk 0:00:05.4]} 53... Rg3 {[%clk 0:00:06.7]} 54.
Qe7+ {[%clk 0:00:06]} 54... Kg8 {[%clk 0:00:08.1]} 55. Qe8+ {[%clk 0:00:07]}
55... Kg7 {[%clk 0:00:09]} 56. Qe7+ {[%clk 0:00:08.4]} 56... Kg8 {[%clk
0:00:10]} 57. Bf7+ {[%clk 0:00:09.9]} 57... Kh8 {[%clk 0:00:08.3]} 58. Qf8+
{[%clk 0:00:08.5]} 58... Kh7 {[%clk 0:00:09]} 59. Bg6+ {[%clk 0:00:09.3]} 1-0

[Event "*** Titled Tuesday Blitz"]
[Site "Chess.com"]
[Date "2019.06.04"]
[Round "4"]
[White "Karacsonyi_Gellert"]
[Black "Zarikovs1999"]
[Result "1-0"]
[WhiteElo "2548"]
[BlackElo "2635"]
[TimeControl "180+2"]
[EndTime "13:53:46 PDT"]
[Termination "Karacsonyi_Gellert won on time"]

1. e4 {[%clk 0:03:01.9]} 1... c5 {[%clk 0:03:00.6]} 2. Nf3 {[%clk 0:03:01.4]}
2... Nc6 {[%clk 0:03:01.8]} 3. d4 {[%clk 0:03:02.5]} 3... cxd4 {[%clk
0:03:02.2]} 4. Nxd4 {[%clk 0:03:04.4]} 4... Nf6 {[%clk 0:03:03.6]} 5. Nc3 {[%clk
0:03:05.3]} 5... e5 {[%clk 0:03:05]} 6. Nf5 {[%clk 0:03:06]} 6... d5 {[%clk
0:02:26.8]} 7. exd5 {[%clk 0:03:07.9]} 7... Bxf5 {[%clk 0:02:25.4]} 8. dxc6
{[%clk 0:03:08.9]} 8... Qxd1+ {[%clk 0:02:23.3]} 9. Nxd1 {[%clk 0:03:10.8]} 9...
bxc6 {[%clk 0:02:22]} 10. Ne3 {[%clk 0:03:12.2]} 10... Bg6 {[%clk 0:02:05.4]}
11. Bc4 {[%clk 0:03:11.1]} 11... Bc5 {[%clk 0:02:03.2]} 12. Bb3 {[%clk
0:03:09.7]} 12... O-O-O {[%clk 0:01:38.4]} 13. Bd2 {[%clk 0:03:03.1]} 13... Ne4
{[%clk 0:01:37]} 14. Ba5 {[%clk 0:03:02.5]} 14... Bb6 {[%clk 0:01:38.5]} 15.
Bxb6 {[%clk 0:03:03.1]} 15... axb6 {[%clk 0:01:40.4]} 16. O-O {[%clk 0:03:03.1]}
16... Kc7 {[%clk 0:01:40]} 17. Rfd1 {[%clk 0:02:58.8]} 17... Nc5 {[%clk
0:01:39.6]} 18. Kf1 {[%clk 0:02:45.1]} 18... f5 {[%clk 0:01:29]} 19. f3 {[%clk
0:02:25]} 19... e4 {[%clk 0:01:19.3]} 20. f4 {[%clk 0:02:20.4]} 20... Bh5 {[%clk
0:01:15.5]} 21. Rxd8 {[%clk 0:02:19.2]} 21... Rxd8 {[%clk 0:01:17.4]} 22. Nxf5
{[%clk 0:02:11.5]} 22... Rf8 {[%clk 0:00:52.7]} 23. Nxg7 {[%clk 0:02:12.1]}
23... Rxf4+ {[%clk 0:00:51.8]} 24. Kg1 {[%clk 0:02:11.1]} 24... Bg6 {[%clk
0:00:52.7]} 25. Ne6+ {[%clk 0:02:10.3]} 25... Nxe6 {[%clk 0:00:52]} 26. Bxe6
{[%clk 0:02:11.8]} 26... e3 {[%clk 0:00:51.8]} 27. Re1 {[%clk 0:02:13.1]} 27...
Re4 {[%clk 0:00:51]} 28. Bb3 {[%clk 0:02:09.4]} 28... Kd6 {[%clk 0:00:49.2]} 29.
c3 {[%clk 0:02:10.1]} 29... Re7 {[%clk 0:00:48.8]} 30. Bd1 {[%clk 0:02:00.3]}
30... Bb1 {[%clk 0:00:47.8]} 31. a3 {[%clk 0:01:58.4]} 31... Bd3 {[%clk
0:00:47.8]} 32. Be2 {[%clk 0:01:57.6]} 32... Bxe2 {[%clk 0:00:49.2]} 33. Rxe2
{[%clk 0:01:58.8]} 33... Kd5 {[%clk 0:00:50.4]} 34. Kf1 {[%clk 0:01:33]} 34...
Ke4 {[%clk 0:00:50.3]} 35. Ke1 {[%clk 0:01:33.7]} 35... Kd3 {[%clk 0:00:47]} 36.
Kd1 {[%clk 0:01:31]} 36... Rf7 {[%clk 0:00:45]} 37. Ke1 {[%clk 0:01:31.9]} 37...
h5 {[%clk 0:00:41.8]} 38. c4 {[%clk 0:01:27]} 38... c5 {[%clk 0:00:38]} 39. b4
{[%clk 0:01:26.4]} 39... cxb4 {[%clk 0:00:28.7]} 40. axb4 {[%clk 0:01:27.4]}
40... Ra7 {[%clk 0:00:30.1]} 41. Kf1 {[%clk 0:01:19]} 41... Rc7 {[%clk
0:00:18.3]} 42. c5 {[%clk 0:01:14.3]} 42... bxc5 {[%clk 0:00:20.2]} 43. bxc5
{[%clk 0:01:15.2]} 43... Rxc5 {[%clk 0:00:21.7]} 44. g3 {[%clk 0:00:43.9]} 44...
Ra5 {[%clk 0:00:19.1]} 45. h3 {[%clk 0:00:41.4]} 45... Rb5 {[%clk 0:00:15.6]}
46. Re1 {[%clk 0:00:33.8]} 46... Rf5+ {[%clk 0:00:14.3]} 47. Kg2 {[%clk
0:00:25.8]} 47... Kd2 {[%clk 0:00:16.2]} 48. Ra1 {[%clk 0:00:25.8]} 48... Rf2+
{[%clk 0:00:14.1]} 49. Kg1 {[%clk 0:00:26.2]} 49... Kd3 {[%clk 0:00:13.7]} 50.
Ra4 {[%clk 0:00:17.8]} 50... Rc2 {[%clk 0:00:08.8]} 51. g4 {[%clk 0:00:18.4]}
51... e2 {[%clk 0:00:07.2]} 52. Kf2 {[%clk 0:00:18.7]} 52... Kd2 {[%clk
0:00:02.7]} 53. Re4 {[%clk 0:00:13.5]} 53... Kd3 {[%clk 0:00:02.6]} 54. Re3+
{[%clk 0:00:13.9]} 54... Kd4 {[%clk 0:00:03.2]} 55. Re8 {[%clk 0:00:05.9]} 55...
Kd3 {[%clk 0:00:03.4]} 56. gxh5 {[%clk 0:00:04.7]} 56... e1=Q+ {[%clk
0:00:03.7]} 57. Kxe1 {[%clk 0:00:04.8]} 57... Rh2 {[%clk 0:00:05.6]} 58. Rh8
{[%clk 0:00:05.6]} 58... Rxh3 {[%clk 0:00:06.7]} 59. h6 {[%clk 0:00:06.9]} 59...
Ke3 {[%clk 0:00:03.5]} 60. Kd1 {[%clk 0:00:08.1]} 60... Kf2 {[%clk 0:00:03.7]}
61. h7 {[%clk 0:00:07.9]} 1-0

[Event "*** Titled Tuesday Blitz"]
[Site "Chess.com"]
[Date "2019.06.04"]
[Round "4"]
[White "KhazarBabazada"]
[Black "SanchezKelvin"]
[Result "1-0"]
[WhiteElo "2605"]
[BlackElo "2448"]
[TimeControl "180+2"]
[EndTime "13:53:50 PDT"]
[Termination "KhazarBabazada won by resignation"]

1. e4 {[%clk 0:03:01.9]} 1... c5 {[%clk 0:03:00.6]} 2. Nf3 {[%clk 0:03:02.8]}
2... d6 {[%clk 0:02:55.7]} 3. d4 {[%clk 0:03:03.8]} 3... cxd4 {[%clk 0:02:57.6]}
4. Nxd4 {[%clk 0:03:05.5]} 4... Nf6 {[%clk 0:02:58.9]} 5. Nc3 {[%clk 0:03:04.5]}
5... g6 {[%clk 0:03:00]} 6. g3 {[%clk 0:02:49.4]} 6... Nc6 {[%clk 0:03:00.4]} 7.
Bg2 {[%clk 0:02:49.6]} 7... Nxd4 {[%clk 0:03:01.2]} 8. Qxd4 {[%clk 0:02:49.9]}
8... Bg7 {[%clk 0:03:03.1]} 9. O-O {[%clk 0:02:49.9]} 9... O-O {[%clk
0:03:03.6]} 10. Qd3 {[%clk 0:02:50.3]} 10... Be6 {[%clk 0:03:01.9]} 11. Be3
{[%clk 0:02:49.5]} 11... Nd7 {[%clk 0:03:01.5]} 12. f4 {[%clk 0:02:48.1]} 12...
Rc8 {[%clk 0:02:54]} 13. Qd2 {[%clk 0:02:49.1]} 13... Qa5 {[%clk 0:02:52.5]} 14.
Nd5 {[%clk 0:02:43.3]} 14... Qxd2 {[%clk 0:02:50.4]} 15. Nxe7+ {[%clk
0:02:38.1]} 15... Kh8 {[%clk 0:02:51.4]} 16. Bxd2 {[%clk 0:02:40]} 16... Rxc2
{[%clk 0:02:51.9]} 17. Be3 {[%clk 0:02:33.6]} 17... Re8 {[%clk 0:02:46.8]} 18.
f5 {[%clk 0:02:27.1]} 18... Bc4 {[%clk 0:02:23.4]} 19. Rfc1 {[%clk 0:02:27.8]}
19... Rxc1+ {[%clk 0:02:22.8]} 20. Rxc1 {[%clk 0:02:29.7]} 20... Bxa2 {[%clk
0:02:21.9]} 21. Rc7 {[%clk 0:01:49]} 21... Rxe7 {[%clk 0:02:16.9]} 22. Rc8+
{[%clk 0:01:49.9]} 22... Bf8 {[%clk 0:01:58]} 23. f6 {[%clk 0:01:44.4]} 23...
Nxf6 {[%clk 0:01:17.5]} 24. Rxf8+ {[%clk 0:01:41.5]} 24... Kg7 {[%clk
0:01:17.7]} 25. Ra8 {[%clk 0:01:40.3]} 25... Nxe4 {[%clk 0:01:13.1]} 26. Bd4+
{[%clk 0:01:37.9]} 26... f6 {[%clk 0:01:13.9]} 27. Rxa7 {[%clk 0:01:36]} 27...
Bd5 {[%clk 0:01:14.3]} 28. b4 {[%clk 0:01:27.2]} 28... Kf7 {[%clk 0:01:06]} 29.
b5 {[%clk 0:01:19.6]} 29... f5 {[%clk 0:00:50]} 30. h4 {[%clk 0:00:56.5]} 30...
Rc7 {[%clk 0:00:32.5]} 31. Ra1 {[%clk 0:00:52.1]} 31... Rc2 {[%clk 0:00:28.9]}
32. Bf3 {[%clk 0:00:41.8]} 32... Ke6 {[%clk 0:00:24.6]} 33. Re1 {[%clk
0:00:37.8]} 33... Rc4 {[%clk 0:00:22.7]} 34. Bf2 {[%clk 0:00:34.2]} 34... Rc3
{[%clk 0:00:22]} 35. Bg2 {[%clk 0:00:30.7]} 35... Rb3 {[%clk 0:00:22.8]} 36. b6
{[%clk 0:00:31.5]} 36... Bc6 {[%clk 0:00:22.9]} 37. Be3 {[%clk 0:00:27.7]} 37...
d5 {[%clk 0:00:22.8]} 38. Bf4 {[%clk 0:00:28.8]} 38... d4 {[%clk 0:00:23.5]} 39.
g4 {[%clk 0:00:28.4]} 39... Bd5 {[%clk 0:00:24]} 40. gxf5+ {[%clk 0:00:28.1]}
40... gxf5 {[%clk 0:00:24.9]} 41. Rc1 {[%clk 0:00:27.6]} 41... Rc3 {[%clk
0:00:25.6]} 42. Rd1 {[%clk 0:00:24.6]} 42... d3 {[%clk 0:00:26.5]} 43. Bf1
{[%clk 0:00:24.3]} 43... Bc4 {[%clk 0:00:27.3]} 44. Be3 {[%clk 0:00:22.9]} 44...
Kd5 {[%clk 0:00:28.4]} 45. h5 {[%clk 0:00:20.9]} 45... Rb3 {[%clk 0:00:28]} 46.
h6 {[%clk 0:00:21.7]} 46... Nf6 {[%clk 0:00:27.9]} 47. Bh3 {[%clk 0:00:22.6]}
47... Ng4 {[%clk 0:00:27.6]} 48. Bg2+ {[%clk 0:00:23.8]} 48... Kd6 {[%clk
0:00:26.8]} 49. Bf4+ {[%clk 0:00:24.8]} 49... Kc5 {[%clk 0:00:26.1]} 50. Bf3
{[%clk 0:00:26.1]} 50... Rxb6 {[%clk 0:00:24]} 51. Bxg4 {[%clk 0:00:27.4]} 51...
fxg4 {[%clk 0:00:23.9]} 52. Be3+ {[%clk 0:00:28.2]} 52... Kc6 {[%clk 0:00:25.1]}
53. Bxb6 {[%clk 0:00:28.2]} 53... Kxb6 {[%clk 0:00:26.3]} 54. Kf2 {[%clk
0:00:30.1]} 54... Kc5 {[%clk 0:00:26.5]} 55. Ke3 {[%clk 0:00:31.5]} 55... b5
{[%clk 0:00:27.7]} 56. Rg1 {[%clk 0:00:32.9]} 56... Kb4 {[%clk 0:00:26.8]} 57.
Rxg4 {[%clk 0:00:34]} 57... Kc3 {[%clk 0:00:28]} 58. Rg1 {[%clk 0:00:26.7]}
58... Kc2 {[%clk 0:00:27.2]} 59. Rg2+ {[%clk 0:00:27.3]} 59... Kc3 {[%clk
0:00:28.6]} 60. Rg1 {[%clk 0:00:28.4]} 60... Kc2 {[%clk 0:00:27.3]} 61. Rg2+
{[%clk 0:00:28]} 61... Kc3 {[%clk 0:00:27.7]} 62. Rg7 {[%clk 0:00:29.4]} 62...
Kc2 {[%clk 0:00:14.8]} 63. Rxh7 {[%clk 0:00:28.2]} 63... d2 {[%clk 0:00:08.9]}
64. Rd7 {[%clk 0:00:29.3]} 1-0